[Event "Titled Tuesday Blitz March 21 Late 2023"]
[White "Makhnev, Denis"]
[Black "Bashirli, Nail"]
[WhiteFideId "13707647"]
[BlackFideId "13406809"]
[WhiteElo "2525"]
[BlackElo "2338"]
[Result "0-1"]
[Round "05"]
[TimeControl "180+2"]
[Date "2023.03.21"]
[WhiteClock "0:00:20"]
[BlackClock "0:00:34"]

1. d4 {[%clk 0:03:00]}  Nf6 {[%clk 0:02:47]} 2. c4 {[%clk 0:03:00]}  e6 {[%clk 0:02:47]} 3. Nf3 {[%clk 0:03:00]}  Bb4+ {[%clk 0:02:47]} 4. Bd2 {[%clk 0:03:00]}  Qe7 {[%clk 0:02:47]} 5. e3 {[%clk 0:03:00]}  O-O {[%clk 0:02:46]} 6. Bd3 {[%clk 0:03:00]}  Bxd2+ {[%clk 0:02:45]} 7. Qxd2 {[%clk 0:03:01]}  d6 {[%clk 0:02:46]} 8. Nc3 {[%clk 0:02:58]}  e5 {[%clk 0:02:45]} 9. Bc2 {[%clk 0:02:59]}  Bg4 {[%clk 0:02:40]} 10. O-O-O {[%clk 0:02:53]}  Nc6 {[%clk 0:02:39]} 11. h3 {[%clk 0:02:47]}  Bd7 {[%clk 0:02:06]} 12. g4 {[%clk 0:02:30]}  e4 {[%clk 0:02:04]} 13. Ng5 {[%clk 0:02:25]}  d5 {[%clk 0:01:59]} 14. cxd5 {[%clk 0:02:10]}  Nb4 {[%clk 0:01:52]} 15. Ngxe4 {[%clk 0:01:39]}  Nxe4 {[%clk 0:01:48]} 16. Bxe4 {[%clk 0:01:39]}  Nxa2+ {[%clk 0:01:47]} 17. Nxa2 {[%clk 0:01:40]}  Qxe4 {[%clk 0:01:48]} 18. Nc3 {[%clk 0:01:41]}  Qe7 {[%clk 0:01:43]} 19. e4 {[%clk 0:01:40]}  a5 {[%clk 0:01:40]} 20. Kb1 {[%clk 0:01:24]}  a4 {[%clk 0:01:40]} 21. Ka1 {[%clk 0:01:24]}  b5 {[%clk 0:01:37]} 22. e5 {[%clk 0:00:52]}  b4 {[%clk 0:01:37]} 23. d6 {[%clk 0:00:42]}  Qe6 {[%clk 0:01:17]} 24. Ne4 {[%clk 0:00:42]}  a3 {[%clk 0:00:43]} 25. b3 {[%clk 0:00:41]}  cxd6 {[%clk 0:00:44]} 26. Nxd6 {[%clk 0:00:34]}  Qxb3 {[%clk 0:00:42]} 27. Rb1 {[%clk 0:00:34]}  Qd5 {[%clk 0:00:41]} 28. Qxb4 {[%clk 0:00:30]}  Be6 {[%clk 0:00:41]} 29. Qd2 {[%clk 0:00:27]}  Rfb8 {[%clk 0:00:38]} 30. Rxb8+ {[%clk 0:00:20]}  Rxb8 {[%clk 0:00:38]} 31. Rb1 {[%clk 0:00:20]}  Rxb1+ {[%clk 0:00:33]} 32. Kxb1 {[%clk 0:00:21]}  a2+ {[%clk 0:00:34]} 33. Kb2 {[%clk 0:00:20]}  Qb3+ {[%clk 0:00:34]} 0-1


[Site "https://www.chess.com"]

[Event "Titled Tuesday Blitz March 21 Late 2023"]
[White "Beerdsen, Thomas"]
[Black "Makarian, Rudik"]
[WhiteFideId "1030108"]
[BlackFideId "44105681"]
[WhiteElo "2547"]
[BlackElo "2436"]
[Result "0-1"]
[Round "05"]
[TimeControl "180+2"]
[Date "2023.03.21"]
[WhiteClock "0:00:58"]
[BlackClock "0:00:23"]

1. e4 {[%clk 0:03:00]}  c5 {[%clk 0:02:58]} 2. Nf3 {[%clk 0:03:00]}  Nc6 {[%clk 0:02:58]} 3. Bc4 {[%clk 0:03:01]}  e6 {[%clk 0:02:58]} 4. O-O {[%clk 0:03:02]}  a6 {[%clk 0:02:53]} 5. c3 {[%clk 0:03:00]}  d5 {[%clk 0:02:48]} 6. exd5 {[%clk 0:02:58]}  exd5 {[%clk 0:02:49]} 7. Bb3 {[%clk 0:02:58]}  Nf6 {[%clk 0:02:40]} 8. d4 {[%clk 0:02:58]}  h6 {[%clk 0:02:30]} 9. Re1+ {[%clk 0:02:55]}  Be6 {[%clk 0:02:30]} 10. Bf4 {[%clk 0:02:48]}  Be7 {[%clk 0:02:25]} 11. h3 {[%clk 0:02:39]}  O-O {[%clk 0:02:24]} 12. Nbd2 {[%clk 0:02:40]}  Re8 {[%clk 0:02:18]} 13. Nf1 {[%clk 0:02:32]}  Qb6 {[%clk 0:02:06]} 14. Ng3 {[%clk 0:02:22]}  cxd4 {[%clk 0:01:45]} 15. cxd4 {[%clk 0:02:22]}  Rac8 {[%clk 0:01:44]} 16. Rc1 {[%clk 0:02:17]}  Na5 {[%clk 0:01:39]} 17. Bc2 {[%clk 0:02:12]}  Nc4 {[%clk 0:01:15]} 18. b3 {[%clk 0:02:08]}  Na3 {[%clk 0:01:15]} 19. Bd3 {[%clk 0:02:08]}  Nb5 {[%clk 0:01:08]} 20. Qd2 {[%clk 0:01:53]}  Bf8 {[%clk 0:00:56]} 21. Be5 {[%clk 0:01:48]}  Nd7 {[%clk 0:00:54]} 22. Nh5 {[%clk 0:01:37]}  Nxe5 {[%clk 0:00:50]} 23. dxe5 {[%clk 0:01:38]}  Rxc1 {[%clk 0:00:43]} 24. Rxc1 {[%clk 0:01:38]}  Rc8 {[%clk 0:00:43]} 25. Rxc8 {[%clk 0:01:38]}  Bxc8 {[%clk 0:00:44]} 26. Qf4 {[%clk 0:01:38]}  Nc7 {[%clk 0:00:39]} 27. Nh4 {[%clk 0:01:29]}  Qb4 {[%clk 0:00:32]} 28. Qg3 {[%clk 0:01:27]}  Ne8 {[%clk 0:00:27]} 29. f4 {[%clk 0:01:14]}  Qd4+ {[%clk 0:00:25]} 30. Kh2 {[%clk 0:01:14]}  Bc5 {[%clk 0:00:25]} 31. Qf3 {[%clk 0:01:02]}  Qg1+ {[%clk 0:00:23]} 32. Kg3 {[%clk 0:01:01]}  Qe1+ {[%clk 0:00:23]} 33. Kh2 {[%clk 0:01:01]}  Bg1+ {[%clk 0:00:22]} 34. Kh1 {[%clk 0:00:59]}  Bf2+ {[%clk 0:00:22]} 35. Kh2 {[%clk 0:00:58]}  Qg1# {[%clk 0:00:23]} 0-1


[Site "https://www.chess.com"]

[Event "Titled Tuesday Blitz March 21 Late 2023"]
[White "Fernandez Guillen, Ernesto J."]
[Black "Terry, Renato"]
[WhiteFideId "3512428"]
[BlackFideId "3803457"]
[WhiteElo "2423"]
[BlackElo "2579"]
[Result "1-0"]
[Round "05"]
[TimeControl "180+2"]
[Date "2023.03.21"]
[WhiteClock "0:00:40"]
[BlackClock "0:01:17"]

1. e4 {[%clk 0:03:00]}  e6 {[%clk 0:02:59]} 2. Nf3 {[%clk 0:02:55]}  d5 {[%clk 0:03:00]} 3. Nc3 {[%clk 0:02:56]}  Nf6 {[%clk 0:03:00]} 4. e5 {[%clk 0:02:56]}  Nfd7 {[%clk 0:03:00]} 5. d4 {[%clk 0:02:57]}  a6 {[%clk 0:03:00]} 6. Ne2 {[%clk 0:02:57]}  c5 {[%clk 0:02:59]} 7. c3 {[%clk 0:02:58]}  b5 {[%clk 0:02:58]} 8. h4 {[%clk 0:02:57]}  Nc6 {[%clk 0:02:57]} 9. Nf4 {[%clk 0:02:57]}  b4 {[%clk 0:02:48]} 10. Bd3 {[%clk 0:02:41]}  bxc3 {[%clk 0:02:41]} 11. bxc3 {[%clk 0:02:42]}  cxd4 {[%clk 0:02:42]} 12. cxd4 {[%clk 0:02:42]}  Bb4+ {[%clk 0:02:42]} 13. Kf1 {[%clk 0:02:40]}  Bc3 {[%clk 0:02:17]} 14. Ba3 {[%clk 0:02:09]}  Qa5 {[%clk 0:01:56]} 15. Bd6 {[%clk 0:01:57]}  Bxa1 {[%clk 0:01:51]} 16. Qxa1 {[%clk 0:01:58]}  Nb4 {[%clk 0:01:51]} 17. Bb1 {[%clk 0:01:54]}  Nb6 {[%clk 0:01:39]} 18. a3 {[%clk 0:01:35]}  Nc6 {[%clk 0:01:32]} 19. h5 {[%clk 0:00:57]}  h6 {[%clk 0:01:30]} 20. Bd3 {[%clk 0:00:41]}  Nc4 {[%clk 0:01:17]} 21. Bxc4 {[%clk 0:00:40]} 1-0


[Site "https://www.chess.com"]

[Event "Titled Tuesday Blitz March 21 Late 2023"]
[White "Hamitevici, Vladimir"]
[Black "Hansen, Eric"]
[WhiteFideId "13902393"]
[BlackFideId "2606771"]
[WhiteElo "2401"]
[BlackElo "2569"]
[Result "1/2-1/2"]
[Round "05"]
[TimeControl "180+2"]
[Date "2023.03.21"]
[WhiteClock "0:00:04"]
[BlackClock "0:00:02"]

1. Nf3 {[%clk 0:02:57]}  d5 {[%clk 0:01:57]} 2. g3 {[%clk 0:01:59]}  Nd7 {[%clk 0:01:54]} 3. Bg2 {[%clk 0:01:55]}  e5 {[%clk 0:01:52]} 4. d3 {[%clk 0:01:55]}  Ngf6 {[%clk 0:01:52]} 5. O-O {[%clk 0:01:54]}  c6 {[%clk 0:01:48]} 6. Nc3 {[%clk 0:01:48]}  Bb4 {[%clk 0:01:47]} 7. a3 {[%clk 0:01:47]}  Bxc3 {[%clk 0:01:44]} 8. bxc3 {[%clk 0:01:47]}  O-O {[%clk 0:01:44]} 9. Nd2 {[%clk 0:01:46]}  Re8 {[%clk 0:01:39]} 10. e4 {[%clk 0:01:45]}  dxe4 {[%clk 0:01:36]} 11. Nxe4 {[%clk 0:01:46]}  Nxe4 {[%clk 0:01:36]} 12. Bxe4 {[%clk 0:01:46]}  Nf6 {[%clk 0:01:37]} 13. Bg2 {[%clk 0:01:46]}  Bg4 {[%clk 0:01:34]} 14. Qd2 {[%clk 0:01:43]}  h6 {[%clk 0:01:33]} 15. c4 {[%clk 0:01:41]}  e4 {[%clk 0:01:27]} 16. d4 {[%clk 0:01:21]}  Qd7 {[%clk 0:01:23]} 17. Bb2 {[%clk 0:01:15]}  Bh3 {[%clk 0:01:20]} 18. d5 {[%clk 0:01:14]}  Bxg2 {[%clk 0:01:07]} 19. Kxg2 {[%clk 0:01:14]}  Nh7 {[%clk 0:01:04]} 20. h4 {[%clk 0:00:40]}  Rad8 {[%clk 0:01:00]} 21. Rad1 {[%clk 0:00:37]}  Qg4 {[%clk 0:00:53]} 22. Qe3 {[%clk 0:00:32]}  b6 {[%clk 0:00:49]} 23. Rd2 {[%clk 0:00:26]}  c5 {[%clk 0:00:41]} 24. a4 {[%clk 0:00:25]}  Nf8 {[%clk 0:00:35]} 25. a5 {[%clk 0:00:20]}  Nd7 {[%clk 0:00:29]} 26. Bc3 {[%clk 0:00:20]}  Rb8 {[%clk 0:00:22]} 27. Rb1 {[%clk 0:00:17]}  bxa5 {[%clk 0:00:21]} 28. Ra1 {[%clk 0:00:15]}  Nb6 {[%clk 0:00:18]} 29. Qe2 {[%clk 0:00:16]}  Qxe2 {[%clk 0:00:11]} 30. Rxe2 {[%clk 0:00:17]}  Nxc4 {[%clk 0:00:11]} 31. Ra4 {[%clk 0:00:17]}  Nb6 {[%clk 0:00:12]} 32. Rxa5 {[%clk 0:00:18]}  Nxd5 {[%clk 0:00:12]} 33. Be1 {[%clk 0:00:19]}  Rbc8 {[%clk 0:00:09]} 34. Rxa7 {[%clk 0:00:19]}  e3 {[%clk 0:00:08]} 35. Ra5 {[%clk 0:00:12]}  h5 {[%clk 0:00:06]} 36. Kf3 {[%clk 0:00:11]}  Nf6 {[%clk 0:00:02]} 37. Rxe3 {[%clk 0:00:09]}  Red8 {[%clk 0:00:02]} 38. Bc3 {[%clk 0:00:05]}  Ng4 {[%clk 0:00:02]} 39. Rd3 {[%clk 0:00:05]}  Rxd3+ {[%clk 0:00:02]} 40. cxd3 {[%clk 0:00:06]}  Rd8 {[%clk 0:00:03]} 41. Rxc5 {[%clk 0:00:05]}  Rxd3+ {[%clk 0:00:03]} 42. Ke2 {[%clk 0:00:06]}  Rd7 {[%clk 0:00:03]} 43. Rxh5 {[%clk 0:00:06]}  Re7+ {[%clk 0:00:03]} 44. Kf1 {[%clk 0:00:06]}  Rc7 {[%clk 0:00:03]} 45. Bd4 {[%clk 0:00:07]}  Rd7 {[%clk 0:00:03]} 46. Bc5 {[%clk 0:00:07]}  Rc7 {[%clk 0:00:03]} 47. Rd5 {[%clk 0:00:06]}  f6 {[%clk 0:00:03]} 48. Rd8+ {[%clk 0:00:06]}  Kf7 {[%clk 0:00:03]} 49. Bd4 {[%clk 0:00:07]}  Nh6 {[%clk 0:00:04]} 50. Rd5 {[%clk 0:00:07]}  Ke6 {[%clk 0:00:04]} 51. Ra5 {[%clk 0:00:07]}  Nf5 {[%clk 0:00:04]} 52. Be3 {[%clk 0:00:07]}  Nxe3+ {[%clk 0:00:02]} 53. fxe3 {[%clk 0:00:08]}  Rc2 {[%clk 0:00:03]} 54. h5 {[%clk 0:00:07]}  Rh2 {[%clk 0:00:03]} 55. Rb5 {[%clk 0:00:06]}  f5 {[%clk 0:00:02]} 56. Ra5 {[%clk 0:00:04]} 1/2-1/2


[Site "https://www.chess.com"]

[Event "Titled Tuesday Blitz March 21 Late 2023"]
[White "Gholami Orimi, Mahdi"]
[Black "Preotu, Razvan"]
[WhiteFideId "12558486"]
[BlackFideId "2613280"]
[WhiteElo "2363"]
[BlackElo "2407"]
[Result "1-0"]
[Round "05"]
[TimeControl "180+2"]
[Date "2023.03.21"]
[WhiteClock "0:01:39"]
[BlackClock "0:00:02"]

1. d4 {[%clk 0:02:55]}  Nf6 {[%clk 0:02:59]} 2. c4 {[%clk 0:02:55]}  g6 {[%clk 0:03:00]} 3. Nc3 {[%clk 0:02:55]}  d5 {[%clk 0:03:00]} 4. cxd5 {[%clk 0:02:55]}  Nxd5 {[%clk 0:03:01]} 5. e4 {[%clk 0:02:55]}  Nxc3 {[%clk 0:03:01]} 6. bxc3 {[%clk 0:02:56]}  Bg7 {[%clk 0:03:01]} 7. Bc4 {[%clk 0:02:57]}  c5 {[%clk 0:03:01]} 8. Ne2 {[%clk 0:02:57]}  Nc6 {[%clk 0:03:01]} 9. O-O {[%clk 0:02:57]}  cxd4 {[%clk 0:02:59]} 10. cxd4 {[%clk 0:02:57]}  Nxd4 {[%clk 0:02:58]} 11. Rb1 {[%clk 0:02:56]}  O-O {[%clk 0:02:56]} 12. Be3 {[%clk 0:02:54]}  Nc6 {[%clk 0:02:42]} 13. Qc2 {[%clk 0:02:46]}  e6 {[%clk 0:01:15]} 14. Rfd1 {[%clk 0:02:41]}  Qe7 {[%clk 0:01:14]} 15. Bb5 {[%clk 0:02:40]}  Rd8 {[%clk 0:01:13]} 16. Bxc6 {[%clk 0:02:37]}  bxc6 {[%clk 0:01:13]} 17. Rxd8+ {[%clk 0:02:29]}  Qxd8 {[%clk 0:01:13]} 18. Qxc6 {[%clk 0:02:29]}  Bd7 {[%clk 0:01:13]} 19. Qb7 {[%clk 0:02:27]}  Qc8 {[%clk 0:01:09]} 20. f3 {[%clk 0:02:20]}  a6 {[%clk 0:01:03]} 21. Kf2 {[%clk 0:02:15]}  Bb5 {[%clk 0:01:02]} 22. Qxc8+ {[%clk 0:02:14]}  Rxc8 {[%clk 0:01:03]} 23. Nd4 {[%clk 0:02:15]}  Bxd4 {[%clk 0:00:26]} 24. Bxd4 {[%clk 0:02:16]}  f5 {[%clk 0:00:26]} 25. Rb2 {[%clk 0:01:59]}  fxe4 {[%clk 0:00:26]} 26. fxe4 {[%clk 0:02:00]}  Kf7 {[%clk 0:00:23]} 27. Ke3 {[%clk 0:01:59]}  Rc1 {[%clk 0:00:15]} 28. Kf4 {[%clk 0:01:57]}  h6 {[%clk 0:00:05]} 29. Ke5 {[%clk 0:01:56]}  g5 {[%clk 0:00:05]} 30. Rf2+ {[%clk 0:01:56]}  Ke7 {[%clk 0:00:04]} 31. Rf6 {[%clk 0:01:54]}  Bc4 {[%clk 0:00:05]} 32. Rxh6 {[%clk 0:01:54]}  Bxa2 {[%clk 0:00:05]} 33. Rh7+ {[%clk 0:01:53]}  Kd8 {[%clk 0:00:05]} 34. Ra7 {[%clk 0:01:53]}  Rc2 {[%clk 0:00:02]} 35. Kd6 {[%clk 0:01:51]}  Kc8 {[%clk 0:00:02]} 36. g3 {[%clk 0:01:40]}  Bc4 {[%clk 0:00:03]} 37. h4 {[%clk 0:01:39]}  gxh4 {[%clk 0:00:03]} 38. gxh4 {[%clk 0:01:39]}  Rd2 {[%clk 0:00:03]} 39. Rc7+ {[%clk 0:01:38]}  Kd8 {[%clk 0:00:02]} 40. Rxc4 {[%clk 0:01:39]} 1-0


[Site "https://www.chess.com"]

[Event "Titled Tuesday Blitz March 21 Late 2023"]
[White "Dardha, Daniel"]
[Black "Spata, German"]
[WhiteFideId "240990"]
[BlackFideId "113026"]
[WhiteElo "2581"]
[BlackElo "2238"]
[Result "1-0"]
[Round "05"]
[TimeControl "180+2"]
[Date "2023.03.21"]
[WhiteClock "0:01:58"]
[BlackClock "0:00:20"]

1. Nf3 {[%clk 0:03:00]}  Nf6 {[%clk 0:02:51]} 2. c4 {[%clk 0:03:00]}  c5 {[%clk 0:02:49]} 3. Nc3 {[%clk 0:03:00]}  g6 {[%clk 0:02:47]} 4. e4 {[%clk 0:02:58]}  d6 {[%clk 0:02:47]} 5. d4 {[%clk 0:02:58]}  cxd4 {[%clk 0:02:47]} 6. Nxd4 {[%clk 0:02:59]}  Bg7 {[%clk 0:02:48]} 7. Be2 {[%clk 0:02:58]}  O-O {[%clk 0:02:47]} 8. O-O {[%clk 0:02:57]}  Nc6 {[%clk 0:02:46]} 9. Be3 {[%clk 0:02:56]}  Bd7 {[%clk 0:02:42]} 10. Qd2 {[%clk 0:02:56]}  Nxd4 {[%clk 0:02:42]} 11. Bxd4 {[%clk 0:02:57]}  Bc6 {[%clk 0:02:42]} 12. f3 {[%clk 0:02:56]}  a5 {[%clk 0:02:42]} 13. b3 {[%clk 0:02:55]}  Nd7 {[%clk 0:02:40]} 14. Be3 {[%clk 0:02:55]}  Nc5 {[%clk 0:02:29]} 15. Rab1 {[%clk 0:02:53]}  Qb6 {[%clk 0:02:24]} 16. Rfc1 {[%clk 0:02:49]}  Rfc8 {[%clk 0:02:22]} 17. Rc2 {[%clk 0:02:48]}  Qd8 {[%clk 0:02:20]} 18. Kh1 {[%clk 0:02:45]}  Qf8 {[%clk 0:02:18]} 19. a3 {[%clk 0:02:42]}  f5 {[%clk 0:01:52]} 20. exf5 {[%clk 0:02:35]}  Qxf5 {[%clk 0:01:50]} 21. b4 {[%clk 0:02:32]}  axb4 {[%clk 0:01:44]} 22. axb4 {[%clk 0:02:33]}  Na4 {[%clk 0:01:37]} 23. Bd3 {[%clk 0:02:16]}  Bxc3 {[%clk 0:00:46]} 24. Bxf5 {[%clk 0:02:11]}  Bxd2 {[%clk 0:00:45]} 25. Be6+ {[%clk 0:02:12]}  Kg7 {[%clk 0:00:38]} 26. Bd4+ {[%clk 0:02:11]}  Kf8 {[%clk 0:00:36]} 27. Rxd2 {[%clk 0:02:12]}  Rc7 {[%clk 0:00:32]} 28. Ra1 {[%clk 0:02:08]}  b5 {[%clk 0:00:26]} 29. cxb5 {[%clk 0:02:05]}  Bxb5 {[%clk 0:00:27]} 30. h3 {[%clk 0:02:03]}  Rb8 {[%clk 0:00:24]} 31. Rda2 {[%clk 0:02:00]}  Nc3 {[%clk 0:00:20]} 32. Ra8 {[%clk 0:01:58]} 1-0


[Site "https://www.chess.com"]

[Event "Titled Tuesday Blitz March 21 Late 2023"]
[White "Costachi, Mihnea"]
[Black "Papasimakopoulos, Alexandros"]
[WhiteFideId "1217518"]
[BlackFideId "4244125"]
[WhiteElo "2456"]
[BlackElo "2359"]
[Result "0-1"]
[Round "05"]
[TimeControl "180+2"]
[Date "2023.03.21"]
[WhiteClock "0:00:31"]
[BlackClock "0:00:08"]

1. Nf3 {[%clk 0:03:00]}  f5 {[%clk 0:02:05]} 2. d4 {[%clk 0:02:55]}  Nf6 {[%clk 0:02:05]} 3. c4 {[%clk 0:02:55]}  g6 {[%clk 0:02:06]} 4. Bf4 {[%clk 0:02:54]}  Bg7 {[%clk 0:02:05]} 5. e3 {[%clk 0:02:55]}  O-O {[%clk 0:02:04]} 6. Nc3 {[%clk 0:02:55]}  d6 {[%clk 0:02:03]} 7. c5 {[%clk 0:02:56]}  h6 {[%clk 0:02:01]} 8. Bc4+ {[%clk 0:02:44]}  e6 {[%clk 0:02:01]} 9. h3 {[%clk 0:02:42]}  d5 {[%clk 0:01:59]} 10. Bd3 {[%clk 0:02:42]}  Ne4 {[%clk 0:01:58]} 11. Be5 {[%clk 0:02:37]}  Nd7 {[%clk 0:01:52]} 12. Bxg7 {[%clk 0:02:32]}  Kxg7 {[%clk 0:01:52]} 13. Qc2 {[%clk 0:02:31]}  c6 {[%clk 0:01:50]} 14. O-O {[%clk 0:02:13]}  Qe7 {[%clk 0:01:45]} 15. b4 {[%clk 0:02:10]}  a6 {[%clk 0:01:42]} 16. a4 {[%clk 0:02:09]}  e5 {[%clk 0:01:42]} 17. b5 {[%clk 0:02:09]}  axb5 {[%clk 0:01:41]} 18. axb5 {[%clk 0:02:10]}  Rxa1 {[%clk 0:01:42]} 19. Rxa1 {[%clk 0:02:10]}  Nxc3 {[%clk 0:01:41]} 20. bxc6 {[%clk 0:02:02]}  bxc6 {[%clk 0:01:40]} 21. dxe5 {[%clk 0:01:56]}  Ne4 {[%clk 0:01:40]} 22. Qb2 {[%clk 0:01:34]}  Ndxc5 {[%clk 0:01:25]} 23. Bf1 {[%clk 0:01:32]}  Ne6 {[%clk 0:01:19]} 24. Qb6 {[%clk 0:01:31]}  Qc5 {[%clk 0:01:13]} 25. Qb8 {[%clk 0:01:13]}  Ba6 {[%clk 0:00:47]} 26. Qb2 {[%clk 0:00:59]}  Bxf1 {[%clk 0:00:47]} 27. Kxf1 {[%clk 0:00:59]}  Qb5+ {[%clk 0:00:42]} 28. Qxb5 {[%clk 0:00:56]}  cxb5 {[%clk 0:00:43]} 29. Rb1 {[%clk 0:00:57]}  Rb8 {[%clk 0:00:42]} 30. Rb4 {[%clk 0:00:56]}  g5 {[%clk 0:00:33]} 31. Ke2 {[%clk 0:00:56]}  g4 {[%clk 0:00:30]} 32. Nh4 {[%clk 0:00:57]}  gxh3 {[%clk 0:00:27]} 33. gxh3 {[%clk 0:00:56]}  Rf8 {[%clk 0:00:23]} 34. f3 {[%clk 0:00:52]}  Nc3+ {[%clk 0:00:21]} 35. Kd3 {[%clk 0:00:49]}  Na4 {[%clk 0:00:15]} 36. Rxb5 {[%clk 0:00:49]}  Nac5+ {[%clk 0:00:15]} 37. Ke2 {[%clk 0:00:42]}  f4 {[%clk 0:00:16]} 38. Ra5 {[%clk 0:00:36]}  fxe3 {[%clk 0:00:16]} 39. Ra7+ {[%clk 0:00:33]}  Rf7 {[%clk 0:00:14]} 40. Nf5+ {[%clk 0:00:33]}  Kg6 {[%clk 0:00:10]} 41. Nh4+ {[%clk 0:00:33]}  Kg7 {[%clk 0:00:09]} 42. Nf5+ {[%clk 0:00:34]}  Kg6 {[%clk 0:00:06]} 43. Nh4+ {[%clk 0:00:31]}  Kg5 {[%clk 0:00:07]} 44. Nf5 {[%clk 0:00:32]}  Rxa7 {[%clk 0:00:06]} 45. Nxe3 {[%clk 0:00:28]}  Ra2+ {[%clk 0:00:05]} 46. Kf1 {[%clk 0:00:28]}  Kf4 {[%clk 0:00:05]} 47. Nxd5+ {[%clk 0:00:29]}  Kxf3 {[%clk 0:00:06]} 48. Ke1 {[%clk 0:00:29]}  Ra1+ {[%clk 0:00:04]} 49. Kd2 {[%clk 0:00:29]}  Ne4+ {[%clk 0:00:05]} 50. Kc2 {[%clk 0:00:28]}  Nd4+ {[%clk 0:00:05]} 51. Kd3 {[%clk 0:00:28]}  Rd1+ {[%clk 0:00:05]} 52. Kc4 {[%clk 0:00:29]}  Ne6 {[%clk 0:00:04]} 53. Ne7 {[%clk 0:00:27]}  Rd4+ {[%clk 0:00:04]} 54. Kb5 {[%clk 0:00:27]}  Rd1 {[%clk 0:00:03]} 55. Kc6 {[%clk 0:00:27]}  Kf4 {[%clk 0:00:03]} 56. Ng6+ {[%clk 0:00:27]}  Kf5 {[%clk 0:00:03]} 57. Nh4+ {[%clk 0:00:28]}  Kxe5 {[%clk 0:00:04]} 58. Nf3+ {[%clk 0:00:28]}  Kf4 {[%clk 0:00:04]} 59. Nh4 {[%clk 0:00:29]}  Rc1+ {[%clk 0:00:04]} 60. Kd5 {[%clk 0:00:29]}  N6g5 {[%clk 0:00:04]} 61. Ng2+ {[%clk 0:00:28]}  Kg3 {[%clk 0:00:04]} 62. Ne3 {[%clk 0:00:29]}  Re1 {[%clk 0:00:05]} 63. Nf5+ {[%clk 0:00:28]}  Kxh3 {[%clk 0:00:05]} 64. Kd4 {[%clk 0:00:28]}  h5 {[%clk 0:00:05]} 65. Ng7 {[%clk 0:00:28]}  h4 {[%clk 0:00:05]} 66. Nf5 {[%clk 0:00:29]}  Kg4 {[%clk 0:00:06]} 67. Nh6+ {[%clk 0:00:28]}  Kf4 {[%clk 0:00:05]} 68. Ng8 {[%clk 0:00:28]}  h3 {[%clk 0:00:06]} 69. Ne7 {[%clk 0:00:28]}  h2 {[%clk 0:00:06]} 70. Ng6+ {[%clk 0:00:29]}  Kg3 {[%clk 0:00:07]} 71. Ne5 {[%clk 0:00:30]}  h1=Q {[%clk 0:00:06]} 72. Nd3 {[%clk 0:00:31]}  Qg1+ {[%clk 0:00:07]} 73. Kd5 {[%clk 0:00:31]}  Rd1 {[%clk 0:00:07]} 74. Kc4 {[%clk 0:00:30]}  Rxd3 {[%clk 0:00:08]} 75. Kxd3 {[%clk 0:00:30]}  Qd1+ {[%clk 0:00:07]} 76. Ke3 {[%clk 0:00:31]}  Qd2# {[%clk 0:00:08]} 0-1


[Site "https://www.chess.com"]

[Event "Titled Tuesday Blitz March 21 Late 2023"]
[White "MKlose11"]
[Black "Timofeev, Artyom"]
[BlackFideId "4140419"]
[WhiteElo "2587"]
[BlackElo "2586"]
[Result "0-1"]
[Round "05"]
[TimeControl "180+2"]
[Date "2023.03.21"]
[WhiteClock "0:00:04"]
[BlackClock "0:00:32"]

1. e4 {[%clk 0:03:00]}  e5 {[%clk 0:02:57]} 2. Nf3 {[%clk 0:02:55]}  d5 {[%clk 0:02:57]} 3. d4 {[%clk 0:02:56]}  dxe4 {[%clk 0:02:48]} 4. Nxe5 {[%clk 0:02:54]}  Bd6 {[%clk 0:02:47]} 5. Nc4 {[%clk 0:02:52]}  Nf6 {[%clk 0:02:43]} 6. Be2 {[%clk 0:02:45]}  h6 {[%clk 0:02:42]} 7. Nxd6+ {[%clk 0:02:45]}  Qxd6 {[%clk 0:02:41]} 8. Be3 {[%clk 0:02:43]}  O-O {[%clk 0:02:40]} 9. c4 {[%clk 0:02:34]}  Nc6 {[%clk 0:02:37]} 10. Nc3 {[%clk 0:02:33]}  Rd8 {[%clk 0:02:36]} 11. d5 {[%clk 0:02:00]}  Ne7 {[%clk 0:02:34]} 12. Nb5 {[%clk 0:01:38]}  Qe5 {[%clk 0:01:40]} 13. Bd4 {[%clk 0:01:32]}  Qg5 {[%clk 0:01:40]} 14. g3 {[%clk 0:01:02]}  b6 {[%clk 0:01:19]} 15. Nxc7 {[%clk 0:01:00]}  Rb8 {[%clk 0:01:19]} 16. Nb5 {[%clk 0:00:56]}  a6 {[%clk 0:01:15]} 17. Nc3 {[%clk 0:00:51]}  Bh3 {[%clk 0:01:08]} 18. Qd2 {[%clk 0:00:45]}  Qg6 {[%clk 0:01:07]} 19. O-O-O {[%clk 0:00:36]}  b5 {[%clk 0:01:07]} 20. Be5 {[%clk 0:00:20]}  Rbc8 {[%clk 0:01:03]} 21. cxb5 {[%clk 0:00:19]}  Nfxd5 {[%clk 0:00:54]} 22. bxa6 {[%clk 0:00:16]}  Kh7 {[%clk 0:00:45]} 23. Kb1 {[%clk 0:00:08]}  e3+ {[%clk 0:00:37]} 24. Qc2 {[%clk 0:00:08]}  Bf5 {[%clk 0:00:37]} 25. Bd3 {[%clk 0:00:07]}  Nxc3+ {[%clk 0:00:36]} 26. Bxc3 {[%clk 0:00:07]}  Bxd3 {[%clk 0:00:34]} 27. Rxd3 {[%clk 0:00:08]}  Rxd3 {[%clk 0:00:34]} 28. fxe3 {[%clk 0:00:06]}  Nd5 {[%clk 0:00:33]} 29. Rd1 {[%clk 0:00:04]}  Rxd1# {[%clk 0:00:32]} 0-1


[Site "https://www.chess.com"]

[Event "Titled Tuesday Blitz March 21 Late 2023"]
[White "Raja Rithvik R"]
[Black "Remolar Gallen, Jose"]
[WhiteFideId "35007394"]
[BlackFideId "2215187"]
[WhiteElo "2402"]
[BlackElo "2223"]
[Result "1-0"]
[Round "05"]
[TimeControl "180+2"]
[Date "2023.03.21"]
[WhiteClock "0:00:10"]
[BlackClock "0:00:07"]

1. b3 {[%clk 0:03:00]}  e5 {[%clk 0:02:59]} 2. Bb2 {[%clk 0:02:59]}  Nc6 {[%clk 0:02:59]} 3. e3 {[%clk 0:02:58]}  Nf6 {[%clk 0:02:59]} 4. Bb5 {[%clk 0:02:55]}  Bd6 {[%clk 0:02:58]} 5. Ne2 {[%clk 0:02:53]}  a6 {[%clk 0:02:45]} 6. Bxc6 {[%clk 0:02:52]}  dxc6 {[%clk 0:02:45]} 7. O-O {[%clk 0:02:52]}  Bg4 {[%clk 0:02:40]} 8. h3 {[%clk 0:02:50]}  Bh5 {[%clk 0:02:40]} 9. d3 {[%clk 0:02:48]}  Qe7 {[%clk 0:02:20]} 10. Nd2 {[%clk 0:02:43]}  O-O-O {[%clk 0:02:17]} 11. Nc4 {[%clk 0:02:42]}  g5 {[%clk 0:02:13]} 12. Qe1 {[%clk 0:02:31]}  g4 {[%clk 0:02:06]} 13. h4 {[%clk 0:02:31]}  Bg6 {[%clk 0:02:01]} 14. Ng3 {[%clk 0:02:20]}  Nh5 {[%clk 0:01:53]} 15. Nxh5 {[%clk 0:02:13]}  Bxh5 {[%clk 0:01:53]} 16. g3 {[%clk 0:02:06]}  f5 {[%clk 0:01:52]} 17. e4 {[%clk 0:01:41]}  f4 {[%clk 0:01:45]} 18. gxf4 {[%clk 0:01:42]}  exf4 {[%clk 0:01:39]} 19. Bxh8 {[%clk 0:01:41]}  f3 {[%clk 0:00:56]} 20. e5 {[%clk 0:01:15]}  Qxh4 {[%clk 0:00:36]} 21. exd6 {[%clk 0:01:13]}  Re8 {[%clk 0:00:22]} 22. Qa5 {[%clk 0:00:45]}  Re7 {[%clk 0:00:09]} 23. Qf5+ {[%clk 0:00:21]}  Kb8 {[%clk 0:00:08]} 24. Be5 {[%clk 0:00:10]}  Qh3 {[%clk 0:00:07]} 25. Ne3 {[%clk 0:00:10]} 1-0


[Site "https://www.chess.com"]